lending/lending_fUSD_20241124
["ID","MTS","AMOUNT","RATE_DAILY","PERIOD"]
[343183617,1732421456001,-500.0,0.00043896,2]
[343183618,1732421456011,-613.81,0.00043896,2]
[343183619,1732421456021,-500.0,0.00043896,2]
[343183620,1732421456030,-500.0,0.00043896,2]
[343183621,1732421456040,-948.38,0.00043896,2]
[343183622,1732421456050,-500.0,0.00043896,2]
[343183623,1732421456059,-500.0,0.00043896,2]
[343183624,1732421456070,-621.01317626,0.00043896,2]
[343183625,1732421456079,-500.0,0.00043896,2]
[343183626,1732421456133,-500.0,0.00043896,2]
[343183627,1732421456143,-500.0,0.00043896,2]
[343183628,1732421456153,-3544.03,0.00043896,2]
[343183629,1732421456164,-500.0,0.00043896,2]
[343183630,1732421456174,-611.03,0.00043896,2]
[343183631,1732421456183,-500.0,0.00043896,2]
[343183632,1732421456192,-500.0,0.00043896,2]
[343183633,1732421456202,-1248.74,0.00043896,2]
[343183634,1732421456212,-500.0,0.00043896,2]
[343183635,1732421456222,-155.82378863,0.00043896,2]
[343183636,1732421456232,-169.76528628,0.00043896,2]
[343183637,1732421456242,-725.44,0.00043896,2]
[343183638,1732421456251,-500.0,0.00043896,2]
[343183639,1732421456261,-500.0,0.00043896,2]
[343183640,1732421456270,-1622.28,0.00043896,2]
[343183641,1732421456279,-500.0,0.00043896,2]
[343183642,1732421456288,-1601.16,0.00043896,2]
[343183643,1732421456299,-1010.91,0.00043896,2]
[343183644,1732421456309,-500.0,0.00043896,2]
[343183645,1732421456318,-1151.99,0.00043896,2]
[343183646,1732421456329,-500.0,0.00043896,2]
[343183647,1732421456338,-500.0,0.00043896,2]
[343183648,1732421456348,-508.13689403,0.00043896,2]
[343183649,1732421456359,-723.91,0.00043896,2]
[343183650,1732421456370,-1046.95,0.00043896,2]
[343183651,1732421456380,-500.0,0.00043896,2]
[343183652,1732421456390,-500.0,0.00043896,2]
[343183653,1732421456400,-500.0,0.00043896,2]
[343183654,1732421456410,-974.29,0.00043896,2]
[343183655,1732421456420,-317.56117399,0.00043896,2]
[343183656,1732421456430,-462.89414465,0.00043896,2]
[343183657,1732421456440,-500.0,0.00043896,2]
[343183658,1732421456449,-500.0,0.00043896,2]
[343183659,1732421456459,-500.0,0.00043896,2]
[343183660,1732421456468,-501.74,0.00043896,2]
[343183661,1732421456479,-2200.27,0.00043896,2]
[343183662,1732421456489,-500.0,0.00043896,2]
[343183663,1732421456499,-434.93662391,0.00043896,2]
[343183664,1732421456510,-628.78,0.00043896,2]
[343183665,1732421456520,-517.11321809,0.00043896,2]
[343183666,1732421456529,-1850.04,0.00043896,2]
[343183667,1732421456540,-4701.61,0.00043896,2]
[343183668,1732421456549,-500.0,0.00043896,2]
[343183669,1732421456559,-500.0,0.00043896,2]
[343183670,1732421456568,-500.0,0.00043896,2]
[343183671,1732421456578,-500.0,0.00043896,2]
[343183672,1732421456588,-500.0,0.00043896,2]
[343183673,1732421456598,-232.71104303,0.00043896,2]
[343183674,1732421456608,-500.0,0.00043896,2]
[343183675,1732421456618,-500.0,0.00043896,2]
[343183676,1732421456628,-1783.96,0.00043896,2]
[343183677,1732421456638,-500.0,0.00043896,2]
[343183678,1732421456647,-500.0,0.00043896,2]
[343183679,1732421456657,-500.0,0.00043896,2]
[343183680,1732421456668,-500.0,0.00043896,2]
[343183681,1732421456678,-500.0,0.00043896,2]
[343183682,1732421456688,-7163.9,0.00043896,2]
[343183683,1732421456698,-500.0,0.00043896,2]
[343183684,1732421456710,-2220.12,0.00043896,2]
[343183685,1732421456719,-500.0,0.00043896,2]
[343183686,1732421456730,-741.0,0.00043896,2]
[343183687,1732421456741,-500.0,0.00043896,2]
[343183688,1732421456751,-150.97450612,0.00043896,2]
[343183689,1732421456761,-500.0,0.00043896,2]
[343183690,1732421456771,-385.8601556,0.00043896,2]
[343183691,1732421456781,-500.0,0.00043896,2]
[343183692,1732421456791,-500.0,0.00043896,2]
[343183693,1732421456802,-500.0,0.00043896,2]
[343183694,1732421456811,-500.0,0.00043896,2]
[343183695,1732421456822,-500.0,0.00043896,2]
[343183696,1732421456832,-4935.52672503,0.00043897,10]
[343183697,1732421456842,-150.0,0.00043897,30]
[343183698,1732421456852,-500.0,0.00043897,2]
[343183699,1732421456863,-500.0,0.00043897,2]
[343183700,1732421456874,-500.0,0.00043897,2]
[343183701,1732421456884,-500.0,0.00043897,2]
[343183702,1732421456895,-500.0,0.00043897,2]
[343183703,1732421456906,-491.40734662,0.00043897,2]
[343183704,1732421456919,-506.75671098,0.00043897,2]
[343183705,1732421456929,-500.0,0.00043897,2]
[343183706,1732421456941,-500.0,0.00043897,2]
[343183707,1732421456951,-497.80022458,0.00043897,2]
[343183708,1732421456962,-500.0,0.00043897,2]
[343183709,1732421456972,-500.0,0.00043897,2]
[343183710,1732421456985,-500.0,0.00043897,2]
[343183711,1732421456995,-511.90530696,0.00043897,2]
[343183712,1732421457005,-523.21551633,0.00043897,2]
[343183713,1732421457016,-500.0,0.00043897,2]
[343183714,1732421457026,-510.14784832,0.00043897,2]
[343183715,1732421457036,-500.0,0.00043897,2]
[343183716,1732421457046,-500.0,0.00043897,2]
[343183717,1732421457056,-500.0,0.00043897,2]
[343183718,1732421457066,-500.0,0.00043897,2]
[343183719,1732421457076,-500.0,0.00043897,2]
[343183720,1732421457085,-500.0,0.00043897,2]
[343183721,1732421457095,-504.16374667,0.00043897,2]
[343183722,1732421457105,-500.0,0.00043897,2]
[343183723,1732421457115,-500.0,0.00043897,2]
[343183724,1732421457125,-500.0,0.00043897,2]
[343183725,1732421457135,-500.0,0.00043897,2]
[343183726,1732421457146,-500.0,0.00043897,2]
[343183727,1732421457156,-500.0,0.00043897,2]
[343183728,1732421457168,-500.0,0.00043897,2]
[343183729,1732421457179,-500.0,0.00043897,2]
[343183730,1732421457189,-459.46690399,0.00043897,2]
[343183731,1732421457200,-500.0,0.00043897,2]
[343183732,1732421457210,-500.0,0.00043897,2]
[343183733,1732421457220,-508.48682718,0.00043897,2]
[343183734,1732421457231,-500.0,0.00043897,2]
[343183735,1732421457241,-500.0,0.00043897,2]
[343183736,1732421457251,-504.05711567,0.00043897,2]
[343183737,1732421457260,-500.0,0.00043897,2]
[343183738,1732421457270,-500.0,0.00043897,2]
[343183739,1732421457279,-500.0,0.00043897,2]
[343183740,1732421457289,-500.0,0.00043897,2]
[343183741,1732421457299,-500.0,0.00043897,2]
[343183742,1732421457308,-500.0,0.00043897,2]
[343183743,1732421457317,-503.80259337,0.00043897,2]
[343183744,1732421457327,-522.00965433,0.00043897,2]
[343183745,1732421457337,-526.90224471,0.00043897,2]
[343183746,1732421457347,-520.36060575,0.00043897,2]
[343183747,1732421457356,-882.2,0.00043897,2]
[343183748,1732421457365,-882.2,0.00043897,2]
[343183749,1732421457374,-500.0,0.00043897,2]
[343183750,1732421457384,-500.0,0.00043897,2]
[343183751,1732421457395,-514.56054701,0.00043897,2]
[343183752,1732421457405,-500.0,0.00043897,2]
[343183753,1732421457417,-548.31440887,0.00043897,2]
[343183754,1732421457427,-500.0,0.00043897,2]
[343183755,1732421457436,-500.0,0.00043897,2]
[343183756,1732421457446,-500.0,0.00043897,2]
[343183757,1732421457455,-500.0,0.00043897,2]
[343183758,1732421457465,-640.0335595,0.00043897,2]
[343183759,1732421457474,-503.74237628,0.00043897,2]
[343183760,1732421457484,-512.99359492,0.00043897,2]
[343183761,1732421457493,-515.79,0.00043897,2]
[343183762,1732421457502,-515.79,0.00043897,2]
[343183763,1732421457512,-245.99082317,0.00043897,2]
[343183764,1732421457523,-504.67273405,0.00043897,2]
[343183765,1732421457533,-505.60332022,0.00043897,2]
[343183766,1732421457543,-500.0,0.00043897,2]
[343183767,1732421457554,-231.21788514,0.00043897,2]
[343183768,1732421457564,-234.02402024,0.00043897,2]
[343183769,1732421457574,-500.0,0.00043897,2]
[343183770,1732421457584,-500.0,0.00043897,2]
[343183771,1732421457594,-503.76639223,0.00043897,2]
[343183772,1732421457604,-500.0,0.00043897,2]
[343183773,1732421457614,-413.23265757,0.00043897,2]
[343183774,1732421457624,-502.13470135,0.00043897,2]
[343183775,1732421457634,-521.23721909,0.00043897,2]
[343183776,1732421457643,-507.33702687,0.00043897,2]
[343183777,1732421457653,-500.0,0.00043897,2]
[343183778,1732421457665,-500.0,0.00043897,2]
[343183779,1732421457676,-516.14163352,0.00043897,2]
[343183780,1732421457685,-500.0,0.00043897,2]
[343183781,1732421457697,-500.0,0.00043897,2]
[343183782,1732421457707,-500.0,0.00043897,2]
[343183783,1732421457717,-500.0,0.00043897,2]
[343183784,1732421457727,-508.18063745,0.00043897,2]
[343183785,1732421457737,-500.0,0.00043897,2]
[343183786,1732421457746,-500.0,0.00043897,2]
[343183787,1732421457756,-502.92241205,0.00043897,2]
[343183788,1732421457766,-500.0,0.00043897,2]
[343183789,1732421457776,-500.0,0.00043897,2]
[343183790,1732421457786,-156.38719141,0.00043897,2]
[343183791,1732421457797,-506.24297931,0.00043897,2]
[343183792,1732421457807,-500.0,0.00043897,2]
[343183793,1732421457817,-500.0,0.00043897,2]
[343183794,1732421457827,-516.86884358,0.00043897,2]
[343183795,1732421457837,-500.0,0.00043897,2]
[343183796,1732421457847,-539.64146293,0.00043897,2]
[343183797,1732421457857,-534.40384218,0.00043897,2]
[343183798,1732421457867,-513.73896628,0.00043897,2]
[343183799,1732421457877,-512.308817,0.00043897,2]
[343183800,1732421457888,-502.0076117,0.00043897,2]
[343183801,1732421457899,-500.0,0.00043897,2]
[343183802,1732421457912,-507.41852833,0.00043897,2]
[343183803,1732421457923,-500.0,0.00043897,2]
[343183804,1732421457933,-500.0,0.00043897,2]
[343183805,1732421457945,-500.0,0.00043897,2]
[343183806,1732421457955,-438.95629128,0.00043897,2]
[343183807,1732421457965,-516.76235575,0.00043897,2]
[343183808,1732421457975,-503.93804887,0.00043897,2]
[343183809,1732421457987,-277.27314038,0.00043897,2]
[343183810,1732421457997,-500.0,0.00043897,2]
[343183811,1732421458007,-508.78026889,0.00043897,2]
[343183812,1732421458017,-537.07284562,0.00043897,2]
[343183813,1732421458027,-500.0,0.00043897,2]
[343183814,1732421458037,-500.0,0.00043897,2]
[343183815,1732421458047,-500.0,0.00043897,2]
[343183816,1732421458056,-500.0,0.00043897,2]
[343183817,1732421458066,-500.0,0.00043897,2]
[343183818,1732421458076,-500.0,0.00043897,2]
[343183819,1732421458085,-510.52488378,0.00043897,2]
[343183820,1732421458095,-500.0,0.00043897,2]
[343183821,1732421458105,-500.0,0.00043897,2]
[343183822,1732421458114,-500.0,0.00043897,2]
[343183823,1732421458124,-500.0,0.00043897,2]
[343183824,1732421458134,-500.0,0.00043897,2]
[343183825,1732421458144,-575.50207384,0.00043897,2]
[343183826,1732421458153,-526.88731142,0.00043897,2]
[343183827,1732421458165,-506.93341732,0.00043897,2]
[343183828,1732421458175,-500.0,0.00043897,2]
[343183829,1732421458185,-500.0,0.00043897,2]
[343183830,1732421458195,-532.70230727,0.00043897,2]
[343183831,1732421458204,-500.0,0.00043897,2]
[343183832,1732421458214,-508.83993381,0.00043897,2]
[343183833,1732421458224,-509.86002784,0.00043897,2]
[343183834,1732421458234,-500.0,0.00043897,2]
[343183835,1732421458244,-500.0,0.00043897,2]
[343183836,1732421458254,-500.0,0.00043897,2]
[343183837,1732421458265,-500.0,0.00043897,2]
[343183838,1732421458274,-520.16498854,0.00043897,2]
[343183839,1732421458284,-500.0,0.00043897,2]
[343183840,1732421458294,-500.0,0.00043897,2]
[343183841,1732421458304,-526.01340095,0.00043897,2]
[343183842,1732421458314,-500.0,0.00043897,2]
[343183843,1732421458324,-500.0,0.00043897,2]
[343183844,1732421458333,-500.0,0.00043897,2]
[343183845,1732421458343,-320.89827586,0.00043897,2]
[343183846,1732421458353,-500.0,0.00043897,2]
[343183847,1732421458363,-187.27468206,0.00043897,2]
[343183848,1732421458372,-183.24482624,0.00043897,2]
[343183849,1732421458382,-500.0,0.00043897,2]
[343183850,1732421458392,-500.0,0.00043897,2]
[343183851,1732421458403,-509.96990453,0.00043897,2]
[343183852,1732421458413,-500.0,0.00043897,2]
[343183853,1732421458423,-522.15208941,0.00043897,2]
[343183854,1732421458433,-500.0,0.00043897,2]
[343183855,1732421458443,-500.0,0.00043897,2]
[343183856,1732421458453,-500.0,0.00043897,2]
[343183857,1732421458462,-414.69305196,0.00043897,2]
[343183858,1732421458471,-424.62623509,0.00043897,2]
[343183859,1732421458482,-519.20962518,0.00043897,2]
[343183860,1732421458493,-500.0,0.00043897,2]
[343183861,1732421458504,-546.64265846,0.00043897,2]
[343183862,1732421458514,-533.76316183,0.00043897,2]
[343183863,1732421458523,-520.49562775,0.00043897,2]
[343183864,1732421458533,-500.0,0.00043897,2]
[343183865,1732421458543,-500.0,0.00043897,2]
[343183866,1732421458552,-500.0,0.00043897,2]
[343183867,1732421458562,-500.0,0.00043897,2]
[343183868,1732421458572,-523.0650809,0.00043897,2]
[343183869,1732421458581,-330.98581594,0.00043897,2]
[343183870,1732421458591,-516.52744777,0.00043897,2]
[343183871,1732421458601,-500.0,0.00043897,2]
[343183872,1732421458611,-500.0,0.00043897,2]
[343183873,1732421458622,-624.15023346,0.00043897,2]
[343183874,1732421458633,-500.0,0.00043897,2]
[343183875,1732421458643,-500.0,0.00043897,2]
[343183876,1732421458652,-303.41990587,0.00043897,2]
[343183877,1732421458665,-500.0,0.00043897,2]
[343183878,1732421458675,-500.0,0.00043897,2]
[343183879,1732421458685,-517.8977288,0.00043897,2]
[343183880,1732421458696,-500.0,0.00043897,2]
[343183881,1732421458707,-500.0,0.00043897,2]
[343183882,1732421458718,-504.77827388,0.00043897,2]
[343183883,1732421458733,-500.0,0.00043897,2]
[343183884,1732421458743,-500.0,0.00043897,2]
[343183885,1732421458752,-500.0,0.00043897,2]
[343183886,1732421458762,-500.0,0.00043897,2]
[343183887,1732421458772,-500.0,0.00043897,2]
[343183888,1732421458782,-594.35200442,0.00043897,2]
[343183889,1732421458793,-611.1504933,0.00043897,2]
[343183890,1732421458803,-162.7586406,0.00043897,2]
[343183891,1732421458813,-500.0,0.00043897,2]
[343183892,1732421458823,-500.0,0.00043897,2]
[343183893,1732421458833,-506.07899045,0.00043897,2]
[343183894,1732421458843,-500.0,0.00043897,2]
[343183895,1732421458852,-500.0,0.00043897,2]
[343183896,1732421458863,-500.0,0.00043897,2]
[343183897,1732421458873,-505.32667508,0.00043897,2]
[343183898,1732421458883,-500.0,0.00043897,2]
[343183899,1732421458893,-500.0,0.00043897,2]
[343183900,1732421458906,-445.38725346,0.00043897,2]
[343183901,1732421458917,-150.55611927,0.00043897,2]
[343183902,1732421458927,-413.13567427,0.00043897,2]
[343183903,1732421458938,-212.45343002,0.00043897,2]
[343183904,1732421458948,-500.0,0.00043897,2]
[343183905,1732421458959,-511.46544563,0.00043897,2]
[343183906,1732421458969,-500.0,0.00043897,2]
[343183907,1732421458979,-451.66995088,0.00043897,2]
[343183908,1732421458989,-551.90966339,0.00043897,2]
[343183909,1732421459000,-500.0,0.00043897,2]
[343183910,1732421459010,-447.46291204,0.00043897,2]
[343183911,1732421459020,-501.51752707,0.00043897,2]
[343183912,1732421459160,-500.0,0.00043897,2]
[343183913,1732421459171,-500.0,0.00043897,2]
[343183914,1732421459181,-500.0,0.00043897,2]
[343183915,1732421459190,-500.0,0.00043897,2]
[343183916,1732421459200,-500.0,0.00043897,2]
[343183917,1732421459210,-502.76750345,0.00043897,2]
[343183918,1732421459222,-500.0,0.00043897,2]
[343183919,1732421459231,-500.0,0.00043897,2]
[343183920,1732421459241,-543.11425816,0.00043897,2]
[343183921,1732421459252,-500.0,0.00043897,2]
[343183922,1732421459261,-500.0,0.00043897,2]
[343183923,1732421459271,-505.35288004,0.00043897,2]
[343183924,1732421459280,-500.0,0.00043897,2]
[343183925,1732421459289,-500.0,0.00043897,2]
[343183926,1732421459299,-500.0,0.00043897,2]
[343183927,1732421459309,-500.0,0.00043897,2]
[343183928,1732421459319,-500.0,0.00043897,2]
[343183929,1732421459328,-500.0,0.00043897,2]
[343183930,1732421459338,-500.0,0.00043897,2]
[343183931,1732421459347,-601.90670671,0.00043897,2]
[343183932,1732421459357,-500.0,0.00043897,2]
[343183933,1732421459367,-500.0,0.00043897,2]
[343183934,1732421459376,-500.0,0.00043897,2]
[343183935,1732421459385,-500.0,0.00043897,2]
[343183936,1732421459395,-500.0,0.00043897,2]
[343183937,1732421459404,-500.0,0.00043897,2]
[343183938,1732421459415,-500.0,0.00043897,2]
[343183939,1732421459424,-500.0,0.00043897,2]
[343183940,1732421459433,-500.0,0.00043897,2]
[343183941,1732421459442,-500.0,0.00043897,2]
[343183942,1732421459452,-500.0,0.00043897,2]
[343183943,1732421459461,-393.62471588,0.00043897,2]
[343183944,1732421459471,-500.0,0.00043897,2]
[343183945,1732421459481,-500.0,0.00043897,2]
[343183946,1732421459490,-500.0,0.00043897,2]
[343183947,1732421459499,-500.0,0.00043897,2]
[343183948,1732421459509,-259.40200174,0.00043897,2]
[343183949,1732421459518,-608.64,0.00043897,2]
[343183950,1732421459528,-608.64,0.00043897,2]
[343183951,1732421459538,-500.0,0.00043897,2]
[343183952,1732421459547,-500.0,0.00043897,2]
[343183953,1732421459556,-500.0,0.00043897,2]
[343183954,1732421459566,-500.0,0.00043897,2]
[343183955,1732421459575,-500.0,0.00043897,2]
[343183956,1732421459584,-500.0,0.00043897,2]
[343183957,1732421459593,-500.0,0.00043897,2]
[343183958,1732421459603,-500.0,0.00043897,2]
[343183959,1732421459612,-500.0,0.00043897,2]
[343183960,1732421459621,-500.0,0.00043897,2]
[343183961,1732421459631,-500.0,0.00043897,120]
[343183962,1732421459640,-500.0,0.00043897,120]
[343183963,1732421459649,-500.0,0.00043897,2]
[343183964,1732421459658,-500.0,0.00043897,2]
[343183965,1732421459669,-1081.29091177,0.00043898,30]
[343183966,1732421459678,-500.0,0.00043899,2]
[343183967,1732421459688,-500.0,0.00043899,2]
[343183968,1732421459698,-527.70424547,0.00043899,2]
[343183969,1732421459708,-500.0,0.00043899,2]
[343183970,1732421459717,-581.61020739,0.00043899,2]
[343183971,1732421459727,-500.0,0.00043899,2]
[343183972,1732421459736,-500.0,0.00043899,2]
[343183973,1732421459747,-8700.0,0.000439,16]
[343183974,1732421459757,-200.0,0.00043902,2]
[343183975,1732421459766,-613.81,0.00043905,2]
[343183976,1732421459776,-500.0,0.00043905,2]
[343183977,1732421459786,-417.72197983,0.00043905,2]
[343183978,1732421459796,-1248.74,0.00043905,2]
[343183979,1732421459806,-725.44,0.00043905,2]
[343183980,1732421459816,-1601.16,0.00043905,2]
[343183981,1732421459826,-500.0,0.00043905,2]
[343183982,1732421459836,-500.0,0.00043905,2]
[343183983,1732421459845,-1046.95,0.00043905,2]
[343183984,1732421459855,-500.0,0.00043905,2]
[343183985,1732421459865,-500.0,0.00043905,2]
[343183986,1732421459874,-501.74,0.00043905,2]
[343183987,1732421459884,-628.78,0.00043905,2]
[343183988,1732421459895,-4701.61,0.00043905,2]
[343183989,1732421459907,-500.0,0.00043905,2]
[343183990,1732421459918,-500.0,0.00043905,2]
[343183991,1732421459928,-1783.96,0.00043905,2]
[343183992,1732421459939,-592.79538178,0.00043905,2]
[343183993,1732421459948,-7163.9,0.00043905,2]
[343183994,1732421459957,-741.0,0.00043905,2]
[343183995,1732421459966,-500.0,0.00043905,2]
[343183996,1732421459977,-216003.10944235,0.00043906,2]
[343183997,1732421459988,-441.23247949,0.00043907,2]
[343183998,1732421459998,-33541.07701574,0.00043908,2]
[343183999,1732421460007,-441.23247949,0.00043908,2]
[343184000,1732421460017,-613.81,0.00043908,2]
[343184001,1732421460029,-1248.74,0.00043908,2]
[343184002,1732421460039,-725.44,0.00043908,2]
[343184003,1732421460049,-1601.16,0.00043908,2]
[343184004,1732421460059,-500.0,0.00043908,2]
[343184005,1732421460070,-500.0,0.00043908,2]
[343184006,1732421460081,-449.159079,0.00043908,2]
[343184007,1732421460092,-501.74,0.00043908,2]
[343184008,1732421460105,-628.78,0.00043908,2]
[343184009,1732421460115,-4701.61,0.00043908,2]
[343184010,1732421460124,-500.0,0.00043908,2]
[343184011,1732421460135,-500.0,0.00043908,2]
[343184012,1732421460146,-1783.96,0.00043908,2]
[343184013,1732421460156,-7163.9,0.00043908,2]
[343184014,1732421460167,-741.0,0.00043908,2]
[343184015,1732421460177,-500.0,0.00043908,2]
[343184016,1732421460187,-5285.01568236,0.00043908,2]
[343184017,1732421460196,-17036.41160256,0.00043909,2]
[343184018,1732421460206,-17036.41160256,0.00043911,2]
[343184019,1732421460216,-5285.01568236,0.00043918,2]
[343184020,1732421460226,-5285.01568236,0.00043919,2]
[343184021,1732421460236,-5285.01568236,0.00043923,2]
[343184022,1732421460246,-14523.90486653,0.00043923,2]
[343184023,1732421460256,-33541.07701574,0.00043938,2]
[343184024,1732421460266,-14523.90486653,0.0004394,2]
[343184025,1732421460275,-613.81,0.0004394,2]
[343184026,1732421460286,-294.84954493,0.0004394,2]
[343184027,1732421460295,-1248.74,0.0004394,2]
[343184028,1732421460305,-725.44,0.0004394,2]
[343184029,1732421460315,-1601.16,0.0004394,2]
[343184030,1732421460325,-500.0,0.0004394,2]
[343184031,1732421460334,-500.0,0.0004394,2]
[343184032,1732421460344,-1046.95,0.0004394,2]
[343184033,1732421460353,-500.0,0.0004394,2]
[343184034,1732421460363,-501.74,0.0004394,2]
[343184035,1732421460372,-628.78,0.0004394,2]
[343184036,1732421460382,-4701.61,0.0004394,2]
[343184037,1732421460392,-500.0,0.0004394,2]
[343184038,1732421460401,-500.0,0.0004394,2]
[343184039,1732421460411,-1783.96,0.0004394,2]
[343184040,1732421460423,-7163.9,0.0004394,2]
[343184041,1732421460432,-741.0,0.0004394,2]
[343184042,1732421460442,-500.0,0.0004394,2]
[343184043,1732421460451,-613.81,0.00043941,2]
[343184044,1732421460461,-1248.74,0.00043941,2]
[343184045,1732421460470,-725.44,0.00043941,2]
[343184046,1732421460480,-1601.16,0.00043941,2]
[343184047,1732421460489,-500.0,0.00043941,2]
[343184048,1732421460499,-500.0,0.00043941,2]
[343184049,1732421460508,-1046.95,0.00043941,2]
[343184050,1732421460517,-500.0,0.00043941,2]
[343184051,1732421460527,-501.74,0.00043941,2]
[343184052,1732421460536,-628.78,0.00043941,2]
[343184053,1732421460545,-4701.61,0.00043941,2]
[343184054,1732421460555,-500.0,0.00043941,2]
[343184055,1732421460564,-500.0,0.00043941,2]
[343184056,1732421460574,-1783.96,0.00043941,2]
[343184057,1732421460583,-7163.9,0.00043941,2]
[343184058,1732421460592,-741.0,0.00043941,2]
[343184059,1732421460602,-500.0,0.00043941,2]
[343184060,1732421460611,-216003.10944235,0.00043941,2]
[343184061,1732421460621,-216003.10944235,0.00043942,2]
[343184062,1732421460631,-5285.01568236,0.00043945,2]
[343184063,1732421460640,-33541.07701574,0.00043945,2]
[343184064,1732421460650,-441.23247949,0.00043947,2]
[343184065,1732421460659,-200.0,0.00043947,2]
[343184066,1732421460670,-14523.90486653,0.00043948,2]
[343184067,1732421460680,-200.0,0.0004395,2]
[343184068,1732421460690,-17036.41160256,0.00043954,2]
[343184069,1732421460700,-14523.90486653,0.00043963,2]
[343184070,1732421460710,-33541.07701574,0.00043968,2]
[343184071,1732421460720,-500.0,0.00043973,10]
[343184072,1732421460730,-441.23247949,0.00043976,2]
[343184073,1732421460740,-17036.41160256,0.00043977,2]
[343184074,1732421460750,-500.0,0.00043977,2]
[343184075,1732421460759,-4701.61,0.00043977,2]
[343184076,1732421460769,-490.35292948,0.00043977,2]
[343184077,1732421460779,-1783.96,0.00043977,2]
[343184078,1732421460789,-7163.9,0.00043977,2]
[343184079,1732421460799,-500.0,0.00043977,2]
[343184080,1732421460809,-613.81,0.00043978,2]
[343184081,1732421460819,-1248.74,0.00043978,2]
[343184082,1732421460829,-725.44,0.00043978,2]
[343184083,1732421460839,-1601.16,0.00043978,2]
[343184084,1732421460849,-335.97353437,0.00043978,2]
[343184085,1732421460859,-500.0,0.00043978,2]
[343184086,1732421460868,-1046.95,0.00043978,2]
[343184087,1732421460878,-501.74,0.00043978,2]
[343184088,1732421460888,-628.78,0.00043978,2]
[343184089,1732421460899,-500.0,0.00043978,2]
[343184090,1732421460913,-741.0,0.00043978,2]
[343184091,1732421460925,-216003.10944235,0.00043979,2]
[343184092,1732421460935,-200.0,0.00043982,2]
[343184093,1732421460946,-392.15828837,0.00043987,2]
[343184094,1732421460957,-4701.61,0.00043987,2]
[343184095,1732421460967,-1783.96,0.00043987,2]
[343184096,1732421460977,-7163.9,0.00043987,2]
[343184097,1732421460987,-500.0,0.00043987,2]
[343184098,1732421460997,-33541.07701574,0.00043988,2]
[343184099,1732421461006,-613.81,0.00043992,2]
[343184100,1732421461016,-1248.74,0.00043992,2]
[343184101,1732421461025,-725.44,0.00043992,2]
[343184102,1732421461035,-1601.16,0.00043992,2]
[343184103,1732421461045,-500.0,0.00043992,2]
[343184104,1732421461054,-1046.95,0.00043992,2]
[343184105,1732421461063,-501.74,0.00043992,2]
[343184106,1732421461073,-628.78,0.00043992,2]
[343184107,1732421461083,-4701.61,0.00043992,2]
[343184108,1732421461092,-500.0,0.00043992,2]
[343184109,1732421461102,-1783.96,0.00043992,2]
[343184110,1732421461112,-7163.9,0.00043992,2]
[343184111,1732421461120,-741.0,0.00043992,2]
[343184112,1732421461129,-500.0,0.00043992,2]
[343184113,1732421461139,-216003.10944235,0.00043993,2]
[343184114,1732421461148,-14523.90486653,0.00043998,2]
[343184115,1732421461158,-14523.90486653,0.00043999,2]
[343184116,1732421461169,-200.0,0.00044,120]